Workbook

Sheet Informasjon
B2: HØP 2021-2024 Simuleringsmodell for utarbeidelse av drifts- og investeringsbudsjett
B6: Fyll ut navn til politisk parti:

Sheet Oppsummering
B2: Oppsummering av partiets budsjettforslag 2021-2024
B3: =+Informasjon!D6 -> 0
B5: =IF(SUM(C15:F15)<>0,"NB! forslaget til driftsbudsjettet er i ubalanse. Vennligst returner til driftsbudsjettet og utfør nødvendige endringer inntil driftsbalansen viser NULL i alle 4 år.","") -> 
E7: Beløp i hele tusen kroner
B8: Drift | C8: 2021 | D8: =C8+1 -> 2022 | E8: =D8+1 -> 2023 | F8: 2024
B9: Brutto driftsramme iht kommunedirektørens forslag | C9: =+Drift!D304 -> 12281971 | D9: =+Drift!E304 -> 12216468 | E9: =+Drift!F304 -> 12288554 | F9: =+Drift!G304 -> 12357135
B10: Netto driftsresultat iht. kommunedirektørens forslag | C10: 0.01998127571 | D10: 0.02814700623 | E10: 0.02999426815 | F10: 0.02758740847
B12: Brutto driftsramme iht. partiets forslag (omtrentlig) | C12: =+Drift!D305 -> 12281971 | D12: =+Drift!E305 -> 12216468 | E12: =+Drift!F305 -> 12288554 | F12: =+Drift!G305 -> 12357135
B13: Netto driftsresultat iht. partiets forslag (omtrentlig) | C13: =+'Grunnlag måltall'!C59 -> 0.01998127571 | D13: =+'Grunnlag måltall'!D59 -> 0.02811646171 | E13: =+'Grunnlag måltall'!E59 -> 0.03036258718 | F13: =+'Grunnlag måltall'!F59 -> 0.0279538452
B15: =+Drift!C15 -> Sum driftsbalanse (skal være null) | C15: =+Drift!D15 -> 0 | D15: =+Drift!E15 -> 0 | E15: =+Drift!F15 -> 0 | F15: =+Drift!G15 -> 0
B17: =IF(SUM(C22:F22)<>0,"Foreslåtte endringer i investeringsbudsjettet øker investeringsnivået samlet de neste 4 årene med:","") ->  | F17: =+SUM(C22:F22) -> 0
B19: Investeringer | C19: 2021 | D19: =C19+1 -> 2022 | E19: =D19+1 -> 2023 | F19: 2024
B20: Brutto investeringer iht. kommunedirektørens forslag | C20: =+Investering!D9 -> 1344850 | D20: =+Investering!E9 -> 1401250 | E20: =+Investering!F9 -> 1262050 | F20: =+Investering!G9 -> 1025825
B21: Brutto investeringer iht. partiets forslag | C21: =+Investering!D11 -> 1344850 | D21: =+Investering!E11 -> 1401250 | E21: =+Investering!F11 -> 1262050 | F21: =+Investering!G11 -> 1025825
B22: Endring sammenlignet med kommunedirektørens forslag | C22: =+C21-C20 -> 0 | D22: =+D21-D20 -> 0 | E22: 0 | F22: 0
B24: Udekket | C24: =+Investering!D23 -> 0 | D24: =+Investering!E23 -> 0 | E24: =+Investering!F23 -> 0 | F24: =+Investering!G23 -> 0
B26: =IF(AND(SUM(C32:F32)<>0, F26>0),"Endringer i låneopptak medfører en økning i kommunens kapitalkostnader sammenlagt for neste 4 år på:","") ->  | F26: =SUM(C32:F32) -> 0
B28: Låneopptak og finanskostnader | C28: 2021 | D28: =C28+1 -> 2022 | E28: =D28+1 -> 2023 | F28: 2024
B29: Låneopptak iht. kommunedirektørens forslag | C29: =+Investering!D13 -> 651036.5 | D29: =+Investering!E13 -> 627742.5 | E29: =+Investering!F13 -> 583221.5 | F29: =+Investering!G13 -> 387123
B30: Låneopptak iht. partiets forslag | C30: =+Investering!D15 -> 651036.5 | D30: =+Investering!E15 -> 627742.5 | E30: =+Investering!F15 -> 583221.5 | F30: =+Investering!G15 -> 387123
B31: Endring sammenlignet med kommunedirektørens forslag | C31: =+Investering!D14 -> 0 | D31: =+Investering!E14 -> 0 | E31: =+Investering!F14 -> 0 | F31: =+Investering!G14 -> 0
B32: Endring i kapitalkostnader som følge av endring i låneopptak | C32: =+'Grunnlag finans'!C41 -> 0 | D32: =+'Grunnlag finans'!D41 -> 0 | E32: =+'Grunnlag finans'!E41 -> 0 | F32: =+'Grunnlag finans'!F41 -> 0

Sheet Investering
C2: Handlings- og økonomiplan 2021-2024 INVESTERINGER
C4: =+Informasjon!D6 -> 0
G6: Beløp i hele tusen kroner
C7: 1. Oppsummering | D7: 2021 | E7: =D7+1 -> 2022 | F7: =E7+1 -> 2023 | G7: 2024 | H7: 2021-2024
C9: Kommunedirektørens forslag til investeringsbudsjett | D9: =+D252 -> 1344850 | E9: =+E252 -> 1401250 | F9: 1262050 | G9: 1025825 | H9: =+D9+E9+F9+G9 -> 5033975
C10: Partiets endringer- totale endringer | D10: =+D253 -> 0 | E10: =+E253 -> 0 | F10: =+F253 -> 0 | G10: =+G253 -> 0 | H10: =+D10+E10+F10+G10 -> 0
C11: Nytt forslag til investeringsbudsjett justert for partiets endringer | D11: =+D9+D10 -> 1344850 | E11: =+E9+E10 -> 1401250 | F11: =+F9+F10 -> 1262050 | G11: =+G9+G10 -> 1025825 | H11: =+D11+E11+F11+G11 -> 5033975
C13: Låneopptak iht kommunedirektørens forslag | D13: =+D257 -> 651036.5 | E13: =+E257 -> 627742.5 | F13: 583221.5 | G13: 387123 | H13: =+G13+F13+E13+D13 -> 2249123.5
C14: Låneopptak iht. partiet endringer | D14: =+D263 -> 0 | E14: =+E263 -> 0 | F14: =+F263 -> 0 | G14: =+G263 -> 0 | H14: =+D14+E14+F14+G14 -> 0
C15: Nytt nivå på låneopptak justert for partiet endringer | D15: =+D13+D14 -> 651036.5 | E15: =+E13+E14 -> 627742.5 | F15: =+F13+F14 -> 583221.5 | G15: =+G13+G14 -> 387123 | H15: =+H13+H14 -> 2249123.5
C17: Overføring fra drift iht kommunedirektørens forslag | D17: 224672 | E17: 302595 | F17: 328916 | G17: 326719 | H17: =+G17+F17+E17+D17 -> 1182902
C18: Overføring fra drift iht. partiets endringer | D18: =+D260 -> 0 | E18: =+E260 -> 0 | F18: 0 | G18: 0 | H18: =+G18+F18+E18+D18 -> 0
C19: Nytt nivå på overføring fra drift justert for partiets endringer | D19: =+D17+D18 -> 224672 | E19: =+E17+E18 -> 302595 | F19: =+F17+F18 -> 328916 | G19: =+G17+G18 -> 326719 | H19: =+H17+H18 -> 1182902
C21: Udekket iht. kommunedirektørens forslag | D21: =+(D257+D258)-D252 -> 0 | E21: =+(E257+E258)-E252 -> 0 | F21: =+(F257+F258)-F252 -> 0 | G21: =+(G257+G258)-G252 -> 0 | H21: =+D21+E21+F21+G21 -> 0
C23: Udekket iht. partiets forslag | D23: =+D264 -> 0 | E23: =+E264 -> 0 | F23: =+F264 -> 0 | G23: =+G264 -> 0 | H23: =+D23+E23+F23+G23 -> 0
C26: 2. HØP 2021-2024- Investeringstabell
C27: Diverse bygg og felles investeringer
C28: Kommunedirektørens forslag- sum diverse bygg, anlegg og felles investeringer | D28: 316425 | E28: 359925 | F28: 281925 | G28: 282100 | H28: =+G28+F28+E28+D28 -> 1240375
H29: =SUM(D29:G29) -> 0
H30: =SUM(D30:G30) -> 0
H31: 0
H32: 0
H39: 0
H40: 0
H41: 0
H42: 0
H43: 0
H44: 0
H45: 0
H46: 0
C47: Sum partiets endringer- diverse bygg og anlegg | D47: =SUM(D29:D46) -> 0 | E47: =SUM(E29:E46) -> 0 | F47: 0 | G47: 0 | H47: =SUM(H29:H46) -> 0
C48: Nytt forslag til budsjett justert for partiets endringer- diverse bygg og anlegg | D48: =+D28+D47 -> 316425 | E48: =+E28+E47 -> 359925 | F48: =+F28+F47 -> 281925 | G48: =+G28+G47 -> 282100 | H48: =+H28+H47 -> 1240375
C50: Skole
C51: Kommunedirektørens forslag- sum skole | D51: 201000 | E51: 191000 | F51: 295000 | G51: 282000 | H51: =+G51+F51+E51+D51 -> 969000
H52: =SUM(D52:G52) -> 0
H53: =SUM(D53:G53) -> 0
H54: 0
H55: 0
H63: 0
H64: 0
H65: 0
H66: 0
H67: 0
H68: 0
H69: 0
H70: 0
C71: Sum partiets endringer- skole | D71: =SUM(D52:D70) -> 0 | E71: =SUM(E52:E70) -> 0 | F71: 0 | G71: 0 | H71: =SUM(H52:H70) -> 0
C72: Nytt forslag til budsjett justert for partiets endringer- skole | D72: =+D51+D71 -> 201000 | E72: =+E51+E71 -> 191000 | F72: =+F51+F71 -> 295000 | G72: =+G51+G71 -> 282000 | H72: =+H51+H71 -> 969000
C74: Barnehage
C75: Kommunedirektørens forslag- sum barnehage | D75: 109000 | E75: 131500 | F75: 69000 | G75: 8000 | H75: =+G75+F75+E75+D75 -> 317500
H76: =SUM(D76:G76) -> 0
H77: =SUM(D77:G77) -> 0
H78: 0
H86: 0
H87: 0
H88: 0
H89: 0
H90: 0
H91: 0
H92: 0
H93: 0
H94: 0
C95: Sum partiets endringer- barnehage | D95: =SUM(D76:D94) -> 0 | E95: =SUM(E76:E94) -> 0 | F95: 0 | G95: 0 | H95: =SUM(H76:H94) -> 0
C96: Nytt forslag til budsjett justert for partiets endringer- barnehage | D96: =+D75+D95 -> 109000 | E96: =+E75+E95 -> 131500 | F96: =+F75+F95 -> 69000 | G96: =+G75+G95 -> 8000 | H96: =+H75+H95 -> 317500
C98: Helse og velferd (eks. bolig bygg KF)
C99: Kommunedirektørens forslag- sum helse og velferd | D99: 118700 | E99: 161500 | F99: 91500 | G99: 27200 | H99: =+G99+F99+E99+D99 -> 398900
H100: =SUM(D100:G100) -> 0
H101: =SUM(D101:G101) -> 0
H102: 0
H109: 0
H110: 0
H111: 0
H112: 0
H113: 0
H114: 0
H115: 0
H116: 0
H117: 0
C118: Sum partiets endringer- levekår | D118: =SUM(D100:D117) -> 0 | E118: =SUM(E100:E117) -> 0 | F118: 0 | G118: 0 | H118: =SUM(H100:H117) -> 0
C119: Nytt forslag til budsjett justert for partiets endringer- levekår | D119: =+D99+D118 -> 118700 | E119: =+E99+E118 -> 161500 | F119: 91500 | G119: =+G99+G118 -> 27200 | H119: =+H99+H118 -> 398900 | I119: 18350
C121: Idrett
C122: Kommunedirektørens forslag- sum idrettsbygg | D122: 48000 | E122: 38750 | F122: 25500 | G122: 32500 | H122: =+G122+F122+E122+D122 -> 144750
H123: =SUM(D123:G123) -> 0
H124: =SUM(D124:G124) -> 0
H125: 0
H131: 0
H132: 0
H133: 0
H134: 0
H135: 0
H136: 0
H137: 0
H138: 0
H139: 0
H140: 0
H141: 0
C142: Sum partiets endringer- idrettsbygg | D142: =SUM(D123:D141) -> 0 | E142: =SUM(E123:E141) -> 0 | F142: 0 | G142: 0 | H142: =SUM(H123:H141) -> 0
C143: Nytt forslag til budsjett justert for partiets endringer- idrettsbygg | D143: =+D122+D142 -> 48000 | E143: =+E122+E142 -> 38750 | F143: =+F122+F142 -> 25500 | G143: =+G122+G142 -> 32500 | H143: =+H122+H142 -> 144750
C145: Vann, avløp og renovasjon
C146: Kommunedirektørens forslag- sum vann, avløp og renovasjon | D146: 174900 | E146: 191800 | F146: 171100 | G146: 162900 | H146: =+G146+F146+E146+D146 -> 700700
H147: =SUM(D147:G147) -> 0
H148: =SUM(D148:G148) -> 0
H149: 0
H156: 0
H157: 0
H158: 0
H159: 0
H160: =+D160+E160+F160+G160 -> 0
H161: 0
H162: 0
H163: 0
H164: 0
H165: 0
H166: 0
C167: Sum partiets endringer- vann, avløp og renovasjon | D167: =SUM(D147:D166) -> 0 | E167: =SUM(E147:E166) -> 0 | F167: 0 | G167: =SUM(G147:G166) -> 0 | H167: =+H160+H161+H162+H163+H164+H165+H166 -> 0
C168: Nytt forslag til budsjett justert for partiets endringer- Vann, avløp og renovasjon | D168: =+D146+D167 -> 174900 | E168: =+E146+E167 -> 191800 | F168: =+F146+F167 -> 171100 | G168: =+G146+G167 -> 162900 | H168: =+H146+H167 -> 700700
C170: Park og vei
C171: Kommunedirektørens forslag- sum park og vei | D171: 214525 | E171: 215075 | F171: 240525 | G171: 163525 | H171: =+G171+F171+E171+D171 -> 833650
H172: =SUM(D172:G172) -> 0
H173: =SUM(D173:G173) -> 0
H174: 0
H182: 0
H183: 0
H184: 0
H185: 0
H186: 0
H187: 0
H188: 0
H189: 0
H190: 0
H191: 0
C192: Sum partiets endringer- park og vei | D192: =SUM(D172:D191) -> 0 | E192: =SUM(E172:E191) -> 0 | F192: 0 | G192: 0 | H192: =SUM(H172:H191) -> 0
C193: Nytt forslag til budsjett justert for partiets endringer- park og vei | D193: =+D171+D192 -> 214525 | E193: =+E171+E192 -> 215075 | F193: =+F171+F192 -> 240525 | G193: =+G171+G192 -> 163525 | H193: =+H171+H192 -> 833650
C195: Kirkelig fellesråd
C196: Kommunedirektørens forslag- sum kirkelig fellesråd | D196: 119100 | E196: 57200 | F196: 23000 | G196: 26600 | H196: =+G196+F196+E196+D196 -> 225900
H197: =SUM(D197:G197) -> 0
H198: =SUM(D198:G198) -> 0
H199: 0
H204: 0
H205: 0
H206: 0
H207: 0
H208: 0
H209: 0
H210: 0
H211: 0
H212: 0
H213: 0
C214: Sum partiets endringer- kirkelig fellesråd | D214: =SUM(D197:D213) -> 0 | E214: =SUM(E197:E213) -> 0 | F214: 0 | G214: 0 | H214: =SUM(H197:H213) -> 0
C215: Nytt forslag til budsjett justert for partiets endringer- kirkelig fellesråd | D215: =+D196+D214 -> 119100 | E215: =+E196+E214 -> 57200 | F215: =+F196+F214 -> 23000 | G215: =+G196+G214 -> 26600 | H215: =+H196+H214 -> 225900
C217: Miljø
C218: Kommunedirektørens forslag- sum miljø | D218: 2000 | E218: 23000 | F218: 23000 | G218: 0 | H218: =+G218+F218+E218+D218 -> 48000
H219: =SUM(D219:G219) -> 0
H224: =SUM(D224:G224) -> 0
H225: 0
H226: 0
H227: 0
H228: 0
H229: 0
C230: Sum partiets endringer- miljø | D230: =SUM(D219:D229) -> 0 | E230: =SUM(E219:E229) -> 0 | F230: 0 | G230: 0 | H230: =SUM(H219:H229) -> 0
C231: Nytt forslag til budsjett justert for partiets endringer- miljø | D231: =+D218+D230 -> 2000 | E231: =+E218+E230 -> 23000 | F231: =+F218+F230 -> 23000 | G231: =+G218+G230 -> 0 | H231: =+H218+H230 -> 48000
C233: Forvaltning
C234: Kommunedirektørens forslag- sum forvaltning | D234: 41200 | E234: 31500 | F234: 41500 | G234: 41000 | H234: =+D234+E234+F234+G234 -> 155200
H235: =SUM(D235:G235) -> 0
H240: =SUM(D240:G240) -> 0
H241: 0
H242: 0
H243: 0
H244: 0
H245: 0
C246: Sum partiets endringer- miljø | D246: =SUM(D235:D245) -> 0 | E246: =SUM(E235:E245) -> 0 | F246: =SUM(F235:F245) -> 0 | G246: =SUM(G235:G245) -> 0 | H246: =SUM(H235:H245) -> 0
C247: Nytt forslag til budsjett justert for partiets endringer- miljø | D247: =+D234+D246 -> 41200 | E247: =+E234+E246 -> 31500 | F247: =+F234+F246 -> 41500 | G247: =+G234+G246 -> 41000 | H247: =+H234+H246 -> 155200
C251: Totale brutto investeringer
C252: Kommunedirektørens forslag - totale brutto investeringer | D252: =+D234+D218+D196+D171+D146+D122+D99+D75+D51+D28 -> 1344850 | E252: =+E234+E218+E196+E171+E146+E122+E99+E75+E51+E28 -> 1401250 | F252: 1262050 | G252: 1025825 | H252: =+D252+E252+F252+G252 -> 5033975
C253: Partiets endringer- totale endringer ift. kommunedirektørens forslag | D253: =+D246+D230+D214+D192+D167+D142+D118+D95+D71+D47 -> 0 | E253: =+E246+E230+E214+E192+E167+E142+E118+E95+E71+E47 -> 0 | F253: 0 | G253: 0 | H253: =+D253+E253+F253+G253 -> 0
C254: Nytt forslag til budsjett justert for partiets endringer totalt | D254: =+D252+D253 -> 1344850 | E254: =+E252+E253 -> 1401250 | F254: =+F252+F253 -> 1262050 | G254: =+G252+G253 -> 1025825 | H254: =+H252+H253 -> 5033975
C256: Finansiering
C257: Kommunedirektørens forslag låneopptak | D257: 651036.5 | E257: 627742.5 | F257: 583221.5 | G257: 387123 | H257: =+G257+F257+E257+D257 -> 2249123.5
C258: Kommunedirektørens forslag egenfinansiering | D258: =+D252-D257 -> 693813.5 | E258: =+E252-E257 -> 773507.5 | F258: =+F252-F257 -> 678828.5 | G258: =+G252-G257 -> 638702 | H258: =+D258+E258+F258+G258 -> 2784851.5
C259: Partiets endringer i egenfinansiering føres under:
C260: Overføringer fra drift til investering (beregnes i driftsbudsjettet) | D260: =+Drift!D291 -> 0 | E260: =+Drift!E291 -> 0 | F260: =+Drift!F291 -> 0 | G260: =+Drift!G291 -> 0 | H260: =+D260+E260+F260+G260 -> 0
C261: Salgsinntekter | H261: =+D261+E261+F261+G261 -> 0
C262: Andre tilskudd | H262: =+D262+E262+F262+G262 -> 0
C263: Partiets endring i låneopptak (beregnes automatisk) | D263: =D253-(+D260+D261+D262) -> 0 | E263: =E253-(+E260+E261+E262) -> 0 | F263: =F253-(+F260+F261+F262) -> 0 | G263: =G253-(+G260+G261+G262) -> 0 | H263: =+D263+E263+F263+G263 -> 0
C264: Udekket iht. partiets endringer | D264: =+D254-(D257+D258+D260+D261+D262+D263) -> 0 | E264: =+E254-(E257+E258+E260+E261+E262+E263) -> 0 | F264: =+F254-(F257+F258+F260+F261+F262+F263) -> 0 | G264: =+G254-(G257+G258+G260+G261+G262+G263) -> 0

Sheet Drift
C2: Handlings- og økonomiplan 2021-2024 DRIFT
C3: =+Informasjon!D6 -> 0
F4: Beløp i hele tusen kroner
D5: 2021 | E5: =D5+1 -> 2022 | F5: =E5+1 -> 2023 | G5: =F5+1 -> 2024
C8: 1. Oppsummering
C10: Brutto budsjettramme iht. kommunedirektørens forslag | D10: =+D304 -> 12281971 | E10: =+E304 -> 12216468 | F10: 12288554 | G10: 12357135
C11: Netto driftsresultat iht. kommunedirektørens forslag | D11: 0.01998127571 | E11: 0.02814700623 | F11: 0.02999426815 | G11: 0.02758740847
C12: Brutto budsjettramme iht. partiets forslag | D12: =+D305 -> 12281971 | E12: =+E305 -> 12216468 | F12: 12288554 | G12: 12357135
C13: Netto driftsresultat iht. partiets forslag (omtrentlig) | D13: =+'Grunnlag måltall'!C59 -> 0.01998127571 | E13: =+'Grunnlag måltall'!D59 -> 0.02811646171 | F13: =+'Grunnlag måltall'!E59 -> 0.03036258718 | G13: =+'Grunnlag måltall'!F59 -> 0.0279538452
C15: Sum driftsbalanse (skal være null) | D15: =D308 -> 0 | E15: =E308 -> 0 | F15: =F308 -> 0 | G15: =G308 -> 0
C18: 2. HØP 2021-2024- driftsrammetabell
C21: Oppvekst og utdanning
C24: Sum brutto endringer iht. kommunedirektørens forslag | D24: -6442 | E24: -78742 | F24: -103942 | G24: -118942
C25: Brutto budsjettramme iht. kommunedirektørens forslag | D25: 4142481 | E25: 4070181 | F25: 4044981 | G25: 4029981
C26: Legg inn dine endringer under:
C50: Sum endring iht. partiets forslag | D50: =SUM(D27:D49) -> 0 | E50: =SUM(E27:E49) -> 0 | F50: =SUM(F27:F49) -> 0 | G50: =SUM(G27:G49) -> 0
C51: Ny budsjettramme iht. partiets forslag | D51: =+D25+D50 -> 4142481 | E51: =+E25+E50 -> 4070181 | F51: =+F25+F50 -> 4044981 | G51: =+G25+G50 -> 4029981
C56: Helse og velferd
C59: Sum brutto endringer iht. kommunedirektørens forslag | D59: 47338 | E59: -6932 | F59: -22432 | G59: 6868
C60: Brutto budsjettramme iht. kommunedirektørens forslag | D60: 3792170 | E60: 3737900 | F60: 3722400 | G60: 3751700
C61: Legg inn dine endringer under:
C88: Sum endring iht. partiets forslag | D88: =SUM(D62:D87) -> 0 | E88: =SUM(E62:E87) -> 0 | F88: =SUM(F62:F87) -> 0 | G88: =SUM(G62:G87) -> 0
C89: Ny budsjettramme iht. partiets forslag | D89: =+D60+D88 -> 3792170 | E89: =+E60+E88 -> 3737900 | F89: =+F60+F88 -> 3722400 | G89: =+G60+G88 -> 3751700
C94: By- og samfunnsplanlegging
C97: Sum brutto endringer iht. kommunedirektørens forslag | D97: -2871 | E97: -4171 | F97: -4571 | G97: -4571
C98: Brutto budsjettramme iht. kommunedirektørens forslag | D98: 114126 | E98: 112826 | F98: 112426 | G98: 112426
C99: Legg inn dine endringer under:
C118: Sum endring iht. partiets forslag | D118: =SUM(D100:D117) -> 0 | E118: =SUM(E100:E117) -> 0 | F118: =SUM(F100:F117) -> 0 | G118: =SUM(G100:G117) -> 0
C119: Ny budsjettramme iht. partiets forslag | D119: =+D98+D118 -> 114126 | E119: =+E98+E118 -> 112826 | F119: =+F98+F118 -> 112426 | G119: =+G98+G118 -> 112426
C124: Bymiljø og utbygging
C127: Sum brutto endringer iht. kommunedirektørens forslag | D127: 19056 | E127: 40956 | F127: 60823 | G127: 93262
C128: Brutto budsjettramme iht. kommunedirektørens forslag | D128: 1712167 | E128: 1734067 | F128: 1753934 | G128: 1786373
C129: Legg inn dine endringer under:
C148: Sum endring iht. partiets forslag | D148: =SUM(D130:D147) -> 0 | E148: =SUM(E130:E147) -> 0 | F148: =SUM(F130:F147) -> 0 | G148: =SUM(G130:G147) -> 0
C149: Ny budsjettramme iht. partiets forslag | D149: =+D128+D148 -> 1712167 | E149: =+E128+E148 -> 1734067 | F149: =+F128+F148 -> 1753934 | G149: =+G128+G148 -> 1786373
C154: Innbygger- og samfunnskontakt
C157: Sum brutto endringer iht. kommunedirektørens forslag | D157: 2170 | E157: 2370 | F157: 970 | G157: -930
C158: Brutto budsjettramme iht. kommunedirektørens forslag | D158: 296041 | E158: 296241 | F158: 294841 | G158: 292941
C159: Legg inn dine endringer under:
C177: Sum endring iht. partiets forslag | D177: =SUM(D160:D176) -> 0 | E177: =SUM(E160:E176) -> 0 | F177: =SUM(F160:F176) -> 0 | G177: =SUM(G160:G176) -> 0
C178: Ny budsjettramme iht. partiets forslag | D178: =+D158+D177 -> 296041 | E178: =+E158+E177 -> 296241 | F178: =+F158+F177 -> 294841 | G178: =+G158+G177 -> 292941
C183: Innovasjon og støttetjenester
C186: Sum brutto endringer iht. kommunedirektørens forslag | D186: 4795 | E186: =(E187-D187)+D186 -> 6795 | F186: =(F187-E187)+E186 -> 4775 | G186: 4775
C187: Brutto budsjettramme iht. kommunedirektørens forslag | D187: 341696 | E187: 343696 | F187: 341676 | G187: 341676
C188: Legg inn dine endringer under:
C207: Sum endring iht. partiets forslag | D207: =SUM(D189:D206) -> 0 | E207: =SUM(E189:E206) -> 0 | F207: =SUM(F189:F206) -> 0 | G207: =SUM(G189:G206) -> 0
C208: Ny budsjettramme iht. partiets forslag | D208: =+D187+D207 -> 341696 | E208: =+E187+E207 -> 343696 | F208: =+F187+F207 -> 341676 | G208: =+G187+G207 -> 341676
C213: Økonomi og organisasjon
C216: Sum brutto endringer iht. kommunedirektørens forslag | D216: -300 | E216: =(E217-D217)+D216 -> -1300 | F216: =(F217-E217)+E216 -> -1300 | G216: -1300
C217: Brutto budsjettramme iht. kommunedirektørens forslag | D217: 87482 | E217: 86482 | F217: 86482 | G217: 86482
C218: Legg inn dine endringer under:
C237: Sum endring iht. partiets forslag | D237: =SUM(D219:D236) -> 0 | E237: =SUM(E219:E236) -> 0 | F237: =SUM(F219:F236) -> 0 | G237: =SUM(G219:G236) -> 0
C238: Ny budsjettramme iht. partiets forslag | D238: =+D217+D237 -> 87482 | E238: =+E217+E237 -> 86482 | F238: =+F217+F237 -> 86482 | G238: =+G217+G237 -> 86482
C243: Felles utgifter
C246: Sum endring iht. kommunedirektørens forslag | D246: -57017 | E246: -17750 | F246: 78989 | G246: 102731
C247: Budsjettramme iht. kommunedirektørens forslag | D247: 1795808 | E247: 1835075 | F247: 1931814 | G247: 1955556
C248: Legg inn dine endringer under:
C268: Sum endring iht. partiets forslag | D268: =+SUM(D249:D267)+D298+D299 -> 0 | E268: =+SUM(E249:E267)+E298+E299 -> 0 | F268: 0 | G268: 0
C269: Ny budsjettramme iht. partiets forslag | D269: =+D247+D268 -> 1795808 | E269: =+E247+E268 -> 1835075 | F269: 1931814 | G269: 1955556
C273: Felles inntekter
C277: Legg inn dine endringer under:
C278: Skatt fra inntekt og formue
C279: Rammetilskudd
C280: Eiendomsskatt
C288: Legg inn dine endringer i disposisjonsfond under:
C289: Disposisjonsfond
C291: Endring i overføring fra drift til investering (klikk på knappen under) | D291: 0 | E291: 0 | F291: 0 | G291: 0
C294: Sum endringer i felles inntekter og utgifter iht. partiets forslag | D294: =ROUND(+D279+D280+D285+D268+D278+D286+D287+D289+D291+D281+D282+D283+D284,-1) -> 0 | E294: =ROUND(+E279+E280+E285+E268+E278+E286+E287+E289+E291+E281+E282+E283+E284,-1) -> 0 | F294: 0 | G294: 0
C297: Endringer i låneopptak i investeringsbudsjettet samt endringer i overføringer fra drift har medført følgende endringer i renter og avdrag:
C298: Renter, endret låneopptak (beregnes av modellen) | D298: =+'Grunnlag finans'!C36 -> 0 | E298: =+'Grunnlag finans'!D36 -> 0 | F298: =+'Grunnlag finans'!E36 -> 0 | G298: =+'Grunnlag finans'!F36 -> 0
C299: Endring avdragsbetalinger (beregnes av modellen) | D299: =+'Grunnlag finans'!C37 -> 0 | E299: =+'Grunnlag finans'!D37 -> 0 | F299: =+'Grunnlag finans'!E37 -> 0 | G299: =+'Grunnlag finans'!F37 -> 0
C304: Brutto driftsramme iht. kommunedirektørens forslag | D304: =+D247+D217+D187+D158+D128+D98+D60+D25 -> 12281971 | E304: =+E247+E217+E187+E158+E128+E98+E60+E25 -> 12216468 | F304: 12288554 | G304: 12357135
C305: Ny brutto driftsramme iht. partiets forslag | D305: =+D238+D208+D247+D178+D149+D119+D89+D51+D294 -> 12281971 | E305: =+E238+E208+E247+E178+E149+E119+E89+E51+E294 -> 12216468 | F305: 12288554 | G305: 12357135
C308: Sum driftsbalanse (skal være null) | D308: =ROUND(+D50+D88+D118+D148+D177+D207+D237+D294,-1) -> 0 | E308: =ROUND(+E50+E88+E118+E148+E177+E207+E237+E294,-1) -> 0 | F308: 0 | G308: 0
H371: *

Sheet Grunnlag finans (hidden)
B10: Låneopptak
B14: Rådmannens forslag: | C14: 2021 | D14: =C14+1 -> 2022 | E14: =D14+1 -> 2023 | F14: =E14+1 -> 2024
B15: Ordinært låneopptak til investeringer | C15: =+Investering!D257 -> 651036.5 | D15: =+Investering!E257 -> 627742.5 | E15: =+Investering!F257 -> 583221.5 | F15: =+Investering!G257 -> 387123
B16: Startlån
B17: Låneopptak til videre utlån (ikke startlån)
B18: Sum låneopptak rådmannens forslag | C18: =+C15+C16+C17 -> 651036.5 | D18: =+D15+D16+D17 -> 627742.5 | E18: 583221.5 | F18: 387123
B20: Partiets forslag til endringer i låneopptak: | C20: 2021 | D20: =C20+1 -> 2022 | E20: =D20+1 -> 2023 | F20: =E20+1 -> 2024
B21: Iht. budsjettforslag fra partiet | C21: =+Investering!D263 -> 0 | D21: =+Investering!E263 -> 0 | E21: =+Investering!F263 -> 0 | F21: =+Investering!G263 -> 0
B22: Startlån
B23: Låneopptak til videre utlån (ikke startlån)
B24: Sum endringer i låneopptak per år iht. partiets forslag | C24: =+C21+C22+C23 -> 0 | D24: =+D21+D22+D23 -> 0 | E24: =+E21+E22+E23 -> 0 | F24: 0
B26: Nytt låneopptak per år | C26: =+C24+C18 -> 651036.5 | D26: =+D24+D18 -> 627742.5 | E26: 583221.5 | F26: 387123
B30: Endring i finanskostnader
B32: Endring i finanskostnader | C32: 2021 | D32: =C32+1 -> 2022 | E32: =D32+1 -> 2023 | F32: 2024
B33: Rentesats | C33: 0.013 | D33: 0.013 | E33: 0.013 | F33: 0.013
B34: Nedbetalingstid (år) | C34: 30 | D34: 30 | E34: 30 | F34: 30
B35: Nytt lån | C35: =+Investering!D263 -> 0 | D35: =+Investering!E263 -> 0 | E35: =+Investering!F263 -> 0 | F35: =+Investering!G263 -> 0
B36: Renter | C36: =+C35*C33 -> 0 | D36: =+(C39+D35)*D33 -> 0 | E36: =+(D39+E35)*E33 -> 0 | F36: =+(E39+F35)*F33 -> 0
B37: Avdrag | C37: =+C35/C34 -> 0 | D37: =+(C35+D35)/D34 -> 0 | E37: =+(C35+D35+E35)/E34 -> 0 | F37: =+(C35+D35+E35+F35)/F34 -> 0
B38: Sum lån 1.januar | C38: =+C35 -> 0 | D38: =+C39+D35 -> 0 | E38: =+D39+E35 -> 0 | F38: =+E39+F35 -> 0
B39: Sum lån 31.desember | C39: =+C38-C37 -> 0 | D39: =+D38-D37 -> 0 | E39: =+E38-E37 -> 0 | F39: =+F38-F37 -> 0
B41: Sum endring finanskostnader | C41: =+C36+C37 -> 0 | D41: =+D36+D37 -> 0 | E41: =+E36+E37 -> 0 | F41: =+F36+F37 -> 0

Sheet Grunnlag måltall (hidden)
B2: Investeringer | C2: 2021 | D2: =C2+1 -> 2022 | E2: =D2+1 -> 2023 | F2: 2024
B3: Diverse bygg og felles investeringer | C3: =+Investering!D48 -> 316425 | D3: =+Investering!E48 -> 359925 | E3: =+Investering!F48 -> 281925 | F3: =+Investering!G48 -> 282100
B4: =+Investering!C50 -> Skole | C4: =+Investering!D72 -> 201000 | D4: =+Investering!E72 -> 191000 | E4: =+Investering!F72 -> 295000 | F4: =+Investering!G72 -> 282000
B5: =+Investering!C74 -> Barnehage | C5: =+Investering!D96 -> 109000 | D5: =+Investering!E96 -> 131500 | E5: =+Investering!F96 -> 69000 | F5: =+Investering!G96 -> 8000
B6: Helse og velferd (eks. Bolig bygg KF) | C6: =+Investering!D119 -> 118700 | D6: =+Investering!E119 -> 161500 | E6: =+Investering!F119 -> 91500 | F6: =+Investering!G119 -> 27200
B7: Idrett | C7: =+Investering!D143 -> 48000 | D7: =+Investering!E143 -> 38750 | E7: =+Investering!F143 -> 25500 | F7: =+Investering!G143 -> 32500
B8: VAR | C8: =+Investering!D168 -> 174900 | D8: =+Investering!E168 -> 191800 | E8: =+Investering!F168 -> 171100 | F8: =+Investering!G168 -> 162900
B9: Park og vei | C9: =+Investering!D193 -> 214525 | D9: =+Investering!E193 -> 215075 | E9: =+Investering!F193 -> 240525 | F9: =+Investering!G193 -> 163525
B10: Kirkebygg | C10: =+Investering!D196 -> 119100 | D10: =+Investering!E196 -> 57200 | E10: =+Investering!F196 -> 23000 | F10: =+Investering!G196 -> 26600
B11: Miljø | C11: =+Investering!D218 -> 2000 | D11: =+Investering!E218 -> 23000 | E11: =+Investering!F218 -> 23000 | F11: =+Investering!G218 -> 0
B12: Forvaltning | C12: =+Investering!D234 -> 41200 | D12: =+Investering!E234 -> 31500 | E12: =+Investering!F234 -> 41500 | F12: =+Investering!G234 -> 41000
B14: Drift | C14: 2021 | D14: =C14+1 -> 2022 | E14: =D14+1 -> 2023 | F14: 2024
B15: =+Drift!C21 -> Oppvekst og utdanning | C15: =+Drift!D51 -> 4142481 | D15: =+Drift!E51 -> 4070181 | E15: =+Drift!F51 -> 4044981 | F15: =+Drift!G51 -> 4029981
B16: =+Drift!C56 -> Helse og velferd | C16: =+Drift!D89 -> 3792170 | D16: =+Drift!E89 -> 3737900 | E16: =+Drift!F89 -> 3722400 | F16: =+Drift!G89 -> 3751700
B17: =+Drift!C94 -> By- og samfunnsplanlegging | C17: =+Drift!D119 -> 114126 | D17: =+Drift!E119 -> 112826 | E17: =+Drift!F119 -> 112426 | F17: =+Drift!G119 -> 112426
B18: =+Drift!C124 -> Bymiljø og utbygging | C18: =+Drift!D128 -> 1712167 | D18: =+Drift!E128 -> 1734067 | E18: =+Drift!F128 -> 1753934 | F18: =+Drift!G128 -> 1786373
B19: =+Drift!C154 -> Innbygger- og samfunnskontakt | C19: =+Drift!D158 -> 296041 | D19: =+Drift!E158 -> 296241 | E19: =+Drift!F158 -> 294841 | F19: =+Drift!G158 -> 292941
B20: =Drift!C183 -> Innovasjon og støttetjenester | C20: =+Drift!D187 -> 341696 | D20: =+Drift!E187 -> 343696 | E20: =+Drift!F187 -> 341676 | F20: =+Drift!G187 -> 341676
B21: =Drift!C213 -> Økonomi og organisasjon | C21: =+Drift!D217 -> 87482 | D21: =+Drift!E217 -> 86482 | E21: =+Drift!F217 -> 86482 | F21: =+Drift!G217 -> 86482
B22: =Drift!C243 -> Felles utgifter | C22: =+Drift!D247 -> 1795808 | D22: =+Drift!E247 -> 1835075 | E22: =+Drift!F247 -> 1931814 | F22: =+Drift!G247 -> 1955556
C23: =SUM(C15:C22) -> 12281971 | D23: =SUM(D15:D22) -> 12216468 | E23: =SUM(E15:E22) -> 12288554 | F23: =SUM(F15:F22) -> 12357135
B25: Indikator | C25: 2013 | D25: 2014 | E25: 2015 | F25: 2016 | G25: 2017 | H25: 2018 | I25: 2019 | J25: 2020 | K25: 2021 | L25: 2022 | M25: 2023 | N25: 2024
B26: Egenfinansiering | C26: 0.42 | D26: 0.47 | E26: 0.45 | F26: 0.52 | G26: 0.63 | H26: 0.57 | I26: 0.37 | J26: 0.63 | K26: =1-('Grunnlag finans'!C26/Investering!D254) -> 0.5159040042 | L26: =1-('Grunnlag finans'!D26/Investering!E254) -> 0.5520124888 | M26: =1-('Grunnlag finans'!E26/Investering!F254) -> 0.5378776594 | N26: =1-('Grunnlag finans'!F26/Investering!G254) -> 0.622622767
B27: Måltall > 50 % | C27: 0.5 | D27: 0.5 | E27: 0.5 | F27: 0.5 | G27: 0.5 | H27: 0.5 | I27: 0.5 | J27: 0.5 | K27: 0.5 | L27: 0.5 | M27: 0.5 | N27: 0.5
B28: Netto driftsresultat | C28: 0.01852431925 | D28: -0.01207512697 | E28: 0.03265214233 | F28: 0.04956557964 | G28: 0.04400459724 | H28: -0.002453250395 | I28: 0.011 | J28: 0.005 | K28: =C46 -> 0.01998127571 | L28: =D59 -> 0.02811646171 | M28: 0.03036258718 | N28: 0.0279538452
B29: Måltall > 3 % | C29: 0.03 | D29: 0.03 | E29: 0.03 | F29: 0.03 | G29: 0.03 | H29: 0.03 | I29: 0.03 | J29: 0.03 | K29: 0.03 | L29: 0.03 | M29: 0.03 | N29: 0.03
B30: Gjeldsgrad | C30: 0.558 | D30: 0.605 | E30: 0.608 | F30: 0.6073113539 | G30: 0.6182518888 | H30: 0.6242297725 | I30: 0.714 | J30: 0.69 | K30: =C36 -> 0.7139212222 | L30: =D36 -> 0.7719381033 | M30: 0.8157772903 | N30: 0.8358208534
B31: Måltall < 60 % | C31: 0.6 | D31: 0.6 | E31: 0.6 | F31: 0.6 | G31: 0.6 | H31: 0.6 | I31: 0.6 | J31: 0.6 | K31: 0.6 | L31: 0.6 | M31: 0.6 | N31: 0.6
B33: Gjeldsgrad | C33: 2021 | D33: =C33+1 -> 2022 | E33: =D33+1 -> 2023 | F33: 2024
B34: Driftsinntekter | C34: =+C53 -> 11341418 | D34: =+D53 -> 11252625 | E34: 11294525 | F34: 11339406
B35: Gjeldsnivå for bykassen ekskl. startlån | C35: =8096879+'Grunnlag finans'!C39 -> 8096879 | D35: =8686330+'Grunnlag finans'!D39 -> 8686330 | E35: =9213817+'Grunnlag finans'!E39 -> 9213817 | F35: =9477712+'Grunnlag finans'!F39 -> 9477712
B36: Gjeldsgrad (oppdateres automatisk) | C36: =+C35/C34 -> 0.7139212222 | D36: =+D35/D34 -> 0.7719381033 | E36: =+E35/E34 -> 0.8157772903 | F36: =+F35/F34 -> 0.8358208534
B38: Netto driftsresultat
B39: Rådmannensforslag | C39: 2021 | D39: =C39+1 -> 2022 | E39: =D39+1 -> 2023 | F39: 2024
B40: Driftsinntekter rådmannens forslag | C40: 11341418 | D40: 11252625 | E40: 11294525 | F40: 11339406
B41: Driftsutgifter rådmannens forslag | C41: 11262526 | D41: 11068783 | E41: 11075513 | F41: 11155293
B42: Brutto driftsresultat | C42: =+C40-C41 -> 78892 | D42: =+D40-D41 -> 183842 | E42: 219012 | F42: 184113
B43: Resultat eksterne finanstransaksjoner | C43: -188423 | D43: -206371 | E43: -217172 | F43: -210141
B44: Motpost avskrivninger | C44: 336147 | D44: 338913 | E44: 341091 | F44: 343008
B45: Nettodriftsresultat | C45: =SUM(C42:C44) -> 226616 | D45: =SUM(D42:D44) -> 316384 | E45: 342931 | F45: 316980
B46: Nettodriftsresultat i % | C46: =+C45/C40 -> 0.01998127571 | D46: =+D45/D40 -> 0.02811646171 | E46: 0.03036258718 | F46: 0.0279538452
B49: Endringer | C49: 2021 | D49: =1+C49 -> 2022 | E49: =1+D49 -> 2023 | F49: 2024
B50: Politiske endringer i utgifter ift. rådmannens forslag | C50: =+Drift!D50+Drift!D88+Drift!D118+Drift!D148+Drift!D177+Drift!D237+Drift!D268 -> 0 | D50: =+Drift!E50+Drift!E88+Drift!E118+Drift!E148+Drift!E177+Drift!E237+Drift!E268 -> 0 | E50: =+Drift!F50+Drift!F88+Drift!F118+Drift!F148+Drift!F177+Drift!F237+Drift!F268 -> 0 | F50: =+Drift!G50+Drift!G88+Drift!G118+Drift!G148+Drift!G177+Drift!G237+Drift!G268 -> 0
B51: Politiske endringer i inntekter iht. rådmannens forslag | C51: =SUM(Drift!D278:D287) -> 0 | D51: =SUM(Drift!E278:E287) -> 0 | E51: =SUM(Drift!F278:F287) -> 0 | F51: =SUM(Drift!G278:G287) -> 0
B53: Driftsinntekter etter politiske endringer | C53: =C40-C51 -> 11341418 | D53: =D40-D51 -> 11252625 | E53: 11294525 | F53: 11339406
B54: Driftutgifter etter politiske endringer | C54: =+C41+C50 -> 11262526 | D54: =+D41+D50 -> 11068783 | E54: 11075513 | F54: 11155293
B55: Brutto driftsresultat etter politiske endringer | C55: =+C53-C54 -> 78892 | D55: =+D53-D54 -> 183842 | E55: 219012 | F55: 184113
B56: Resultat eksterne finanstransaksjoner | C56: =C43 -> -188423 | D56: =D43 -> -206371 | E56: -217172 | F56: -210141
B57: Motpost avskrivninger | C57: =C44 -> 336147 | D57: =D44 -> 338913 | E57: 341091 | F57: 343008
B58: Nettodriftsresultat (etter politiske endringer) | C58: =+C55+C56+C57 -> 226616 | D58: =+D55+D56+D57 -> 316384 | E58: 342931 | F58: 316980
B59: Nettodriftsresultat (etter politiske endringer) | C59: =+C58/C53 -> 0.01998127571 | D59: =+D58/D53 -> 0.02811646171 | E59: 0.03036258718 | F59: 0.0279538452
